bitfinex/quotes_SOLUSD_20250830
["timestamp","ask_amount","ask_price","bid_price","bid_amount"]
[1756516260497,77.99559401,205.21,205.2,1e-08]
[1756516260697,13.59559401,205.2,205.18,0.03]
[1756516261013,13.59559401,205.2,205.09,0.75]
[1756516261014,26.0,205.17,205.09,0.03]
[1756516261511,26.0,205.13,205.09,0.03]
[1756516262001,31.55495734,205.13,205.09,0.03]
[1756516262312,26.68,205.13,205.09,0.03]
[1756516262486,4.87433972,205.16,205.09,0.03]
[1756516262688,26.0,205.18,205.12,0.73]
[1756516263690,26.0,205.16,205.12,0.73]
[1756516264015,26.0,205.18,205.12,0.73]
[1756516264215,26.0,205.18,205.13,0.7]
[1756516264405,26.0,205.17,205.14,0.7]
[1756516265402,26.0,205.17,205.12,0.03]
[1756516265601,0.68,205.17,205.12,0.73]
[1756516266015,0.68,205.16,205.12,0.03]
[1756516266519,0.68,205.16,205.12,0.73]
[1756516267522,30.9337763,205.18,205.12,0.73]
[1756516267523,0.68,205.15,205.12,0.03]
[1756516267901,5.55423722,205.17,205.12,0.03]
[1756516268301,0.68,205.16,205.12,0.03]
[1756516270218,0.68,205.15,205.12,0.03]
[1756516271514,26.0,205.13,205.12,0.03]
[1756516272039,0.68,205.13,205.12,0.03]
[1756516273122,31.55495734,205.13,205.12,0.03]
[1756516274019,26.68,205.13,205.12,0.03]
[1756516274220,64.4,205.14,205.12,0.03]
[1756516274436,38.4,205.14,205.12,0.03]
[1756516274730,39.08,205.14,205.12,0.03]
[1756516275730,0.68,205.13,205.12,0.03]
[1756516277229,38.4,205.14,205.12,0.03]
[1756516277607,0.68,205.13,205.12,0.03]
[1756516278707,64.4,205.14,205.12,0.03]
[1756516279027,26.0,205.13,205.12,0.03]
[1756516280117,26.68,205.13,205.12,0.03]
[1756516280732,26.0,205.13,205.12,0.03]
[1756516287747,26.68,205.13,205.12,0.03]
[1756516288222,26.0,205.13,205.12,0.03]
[1756516288740,26.68,205.13,205.12,0.03]
[1756516289567,39.08,205.13,205.12,0.03]
[1756516290428,43.95495734,205.13,205.12,0.03]
[1756516291145,64.4,205.13,205.12,0.03]
[1756516292532,69.27495734,205.13,205.12,0.03]
[1756516292738,69.96495734,205.13,205.12,0.03]
[1756516294343,57.56055135,205.13,205.12,0.03]
[1756516298050,39.59559401,205.1,205.09,0.03]
[1756516298233,77.99559401,205.1,205.09,0.03]
[1756516298435,78.68559401,205.1,205.09,0.03]
[1756516299656,83.56126441,205.1,205.09,0.03]
[1756516302369,43.25537156,205.12,205.09,0.74]
[1756516302659,26.0,205.1,205.09,0.74]
[1756516303168,26.0,205.1,205.09,0.03]
[1756516304064,26.0,205.1,205.09,0.74]
[1756516307259,4.87484494,205.14,205.09,0.74]
[1756516307564,64.38,205.13,205.09,0.74]
[1756516308148,64.38,205.13,205.09,0.03]
[1756516308348,64.38,205.13,205.1,0.71]
[1756516309460,69.25505429,205.13,205.09,0.03]
[1756516309770,69.94505429,205.13,205.09,0.74]
[1756516313975,69.25505429,205.13,205.09,0.74]
[1756516314153,69.94505429,205.13,205.09,0.74]
[1756516314677,5.56527333,205.12,205.09,0.03]
[1756516315951,4.87527333,205.12,205.09,0.74]
[1756516316465,65.07,205.13,205.09,0.03]
[1756516316654,65.07,205.13,205.1,0.71]
[1756516317175,69.94497119,205.13,205.09,0.03]
[1756516317481,69.94497119,205.13,205.09,0.74]
[1756516317772,0.69,205.12,205.09,0.74]
[1756516317987,0.69,205.12,205.09,0.03]
[1756516318479,26.0,205.1,205.09,0.03]
[1756516319265,26.0,205.1,205.09,0.74]
[1756516319882,26.0,205.1,205.09,0.03]
[1756516320583,64.38,205.13,205.09,0.74]
[1756516321053,65.08,205.13,205.09,0.74]
[1756516321251,26.0,205.11,205.1,0.67]
[1756516322657,26.0,205.12,205.1,0.67]
[1756516322857,26.0,205.12,205.09,0.03]
[1756516323058,26.0,205.12,205.11,0.67]
[1756516323971,26.0,205.12,205.09,0.7]
[1756516324169,26.0,205.12,205.09,0.03]
[1756516324366,26.0,205.12,205.1,0.67]
[1756516325371,26.0,205.12,205.09,0.03]
[1756516325372,39.06,205.11,205.09,0.03]
[1756516325581,77.95559401,205.1,205.09,0.03]
[1756516326095,83.53126441,205.1,205.09,0.03]
[1756516326866,85.48625041,205.1,205.09,0.03]
[1756516328562,13.59559401,205.09,205.07,0.03]
[1756516328867,51.95559401,205.08,205.07,0.03]
[1756516329080,52.65559401,205.08,205.07,0.03]
[1756516329380,54.61067601,205.08,205.07,0.03]
[1756516330474,59.4868219,205.08,205.07,0.03]
[1756516342197,57.5317399,205.08,205.07,0.03]
[1756516343276,19.1717399,205.08,205.07,0.03]
[1756516343482,69.21614589,205.08,205.07,0.7]
[1756516343684,69.21614589,205.08,205.07,0.03]
[1756516346626,69.21614589,205.08,205.07,0.7]
[1756516346787,69.21614589,205.08,205.07,0.03]
[1756516348592,69.91614589,205.08,205.07,0.03]
[1756516348793,83.5117399,205.08,205.07,0.03]
[1756516357927,2.015177,205.09,205.07,0.75]
[1756516358103,0.06,205.09,205.08,0.72]
[1756516360005,0.06,205.15,205.09,13.59559401]
[1756516360318,0.06,205.14,205.1,0.72]
[1756516361305,0.06,205.14,205.11,6.82927369]
[1756516361506,0.06,205.14,205.12,0.72]
[1756516362229,0.06,205.14,205.13,1.95365]
[1756516362612,0.06,205.14,205.13,2.67365]
[1756516363312,0.06,205.14,205.13,7.54860734]
[1756516365316,0.06,205.14,205.13,100.74420135]
[1756516367932,0.06,205.15,205.14,13.59559401]
[1756516368127,0.06,205.15,205.14,131.49559401]
[1756516368329,0.06,205.15,205.14,132.21559401]
[1756516368930,0.06,205.15,205.14,98.79031371]
[1756516369230,0.06,205.15,205.14,137.09031371]
[1756516370927,0.06,205.15,205.14,139.04339071]
[1756516373326,0.06,205.15,205.14,100.74339071]
[1756516373552,0.06,205.15,205.14,139.02339071]
[1756516378359,0.06,205.15,205.14,100.74339071]
[1756516378537,0.06,205.15,205.14,139.02339071]
[1756516379356,0.06,205.15,205.14,100.74339071]
[1756516379557,0.06,205.15,205.14,124.7077967]
[1756516380271,0.06,205.15,205.14,86.4277967]
[1756516380428,0.76,205.15,205.14,40.233077]
[1756516380632,0.76,205.15,205.13,0.03]
[1756516380849,0.76,205.15,205.14,38.28]
[1756516382759,0.76,205.15,205.13,0.03]
[1756516382930,0.76,205.15,205.14,38.28]
[1756516383845,0.76,205.15,205.13,0.03]
[1756516384269,0.76,205.15,205.13,38.29]
[1756516384468,0.71,205.14,205.13,0.03]
[1756516384635,0.71,205.14,205.13,38.29]
[1756516389754,0.06,205.15,205.13,38.29]
[1756516389955,0.77,205.15,205.13,38.29]
[1756516390658,0.77,205.15,205.14,38.26]
[1756516392475,0.77,205.15,205.13,0.03]
[1756516392684,0.77,205.15,205.14,38.26]
[1756516393579,0.77,205.15,205.13,0.03]
[1756516393881,0.77,205.15,205.14,38.26]
[1756516394685,0.77,205.15,205.13,0.03]
[1756516394894,0.77,205.15,205.14,38.26]
[1756516397194,0.06,205.15,205.14,38.26]
[1756516398460,0.77,205.15,205.14,38.26]
[1756516398782,0.77,205.15,205.13,0.03]
[1756516399591,5.64458667,205.15,205.13,0.03]
[1756516399974,0.77,205.15,205.13,0.03]
[1756516400564,0.71,205.14,205.13,0.03]
[1756516401982,0.71,205.14,205.13,38.29]
[1756516403781,0.71,205.14,205.13,0.03]
[1756516406915,19.18031371,205.14,205.13,0.03]
[1756516407211,26.0,205.11,205.1,0.03]
[1756516407701,26.71,205.11,205.1,0.03]
[1756516408403,31.58543269,205.11,205.1,0.03]
[1756516410297,26.71,205.11,205.1,0.03]
[1756516410881,26.0,205.11,205.1,0.03]
[1756516411702,26.67,205.11,205.1,0.03]
[1756516411885,31.54543269,205.11,205.1,0.03]
[1756516414089,4.87510709,205.13,205.1,0.03]
[1756516414291,26.0,205.11,205.1,0.03]
[1756516414497,26.0,205.12,205.1,0.03]
[1756516416914,26.0,205.13,205.1,0.03]
[1756516417694,26.67,205.13,205.1,0.03]
[1756516418908,31.54505847,205.13,205.1,0.03]
[1756516419209,0.67,205.12,205.1,0.03]
[1756516420006,5.54523501,205.12,205.1,0.03]
[1756516420402,4.87523501,205.12,205.1,0.03]
[1756516420719,0.67,205.11,205.1,0.03]
[1756516421213,26.0,205.13,205.1,0.7]
[1756516422192,0.06,205.15,205.11,0.67]
[1756516422515,26.06,205.15,205.11,0.67]
[1756516422699,0.06,205.13,205.11,0.67]
[1756516422905,0.06,205.13,205.12,0.67]
[1756516424145,0.06,205.13,205.12,5.545195]
[1756516424515,0.06,205.13,205.12,7.559988]
[1756516424728,0.06,205.13,205.12,0.67]
[1756516425110,0.06,205.13,205.12,2.623841]
[1756516430942,0.06,205.13,205.12,1.953841]
[1756516431245,0.73,205.13,205.1,0.03]
[1756516432044,0.06,205.13,205.1,0.03]
[1756516432220,0.67,205.12,205.1,0.03]
[1756516432420,0.06,205.13,205.1,0.03]
[1756516432643,0.67,205.12,205.1,0.03]
[1756516433229,4.87543269,205.11,205.1,0.03]
[1756516433534,0.06,205.13,205.1,0.03]
[1756516434051,0.06,205.13,205.1,0.7]
[1756516434052,26.06,205.13,205.1,0.7]
[1756516435650,0.06,205.13,205.1,0.7]
[1756516436974,0.06,205.13,205.1,0.03]
[1756516437130,0.73,205.13,205.1,0.03]
[1756516437834,0.06,205.13,205.1,0.03]
[1756516438037,0.67,205.12,205.1,0.03]
[1756516438246,0.06,205.13,205.1,0.03]
[1756516438431,0.73,205.13,205.1,0.03]
[1756516439063,26.06,205.13,205.1,0.03]
[1756516439360,0.67,205.12,205.1,0.03]
[1756516440150,0.06,205.13,205.1,0.03]
[1756516440338,0.73,205.13,205.1,0.03]
[1756516440957,0.06,205.13,205.1,0.03]
[1756516441131,0.67,205.12,205.1,0.03]
[1756516441560,26.06,205.13,205.1,0.03]
[1756516441861,26.73,205.13,205.1,0.03]
[1756516443668,0.67,205.12,205.1,0.03]
[1756516445551,0.06,205.13,205.1,0.03]
[1756516445750,0.67,205.11,205.1,0.03]
[1756516447368,0.73,205.13,205.1,0.03]
[1756516447867,0.67,205.12,205.1,0.03]
[1756516448371,0.06,205.13,205.1,0.03]
[1756516448571,0.73,205.13,205.1,0.03]
[1756516448965,0.06,205.13,205.11,0.71]
[1756516450105,0.06,205.13,205.1,0.03]
[1756516450277,0.06,205.13,205.1,5.615774]
[1756516451089,0.06,205.13,205.1,0.74]
[1756516453757,0.06,205.13,205.11,0.71]
[1756516454077,0.67,205.12,205.11,10.491549]
[1756516454291,0.67,205.12,205.1,0.03]
[1756516455354,0.67,205.11,205.1,0.03]
[1756516455980,26.73,205.13,205.1,0.03]
[1756516456469,0.67,205.12,205.1,0.03]
[1756516456882,0.67,205.11,205.1,0.03]
[1756516472595,0.06,205.13,205.1,0.71]
[1756516473188,0.06,205.13,205.11,1.953936]
[1756516473594,0.06,205.13,205.12,0.68]
[1756516474099,0.06,205.13,205.12,2.633841]
[1756516474993,0.06,205.13,205.1,0.03]
[1756516475293,0.06,205.13,205.11,2.63384]
[1756516476697,0.06,205.13,205.12,0.68]
[1756516477494,0.06,205.13,205.12,2.63384]
[1756516478677,0.06,205.13,205.12,7.509035]
[1756516481483,0.06,205.13,205.12,45.669035]
[1756516486488,0.06,205.13,205.12,1.95384]
[1756516486694,0.75,205.13,205.1,117.77]
[1756516486881,0.75,205.13,205.11,1.953936]
[1756516488592,0.75,205.13,205.11,40.093936]
[1756516489903,0.06,205.13,205.11,40.093936]
[1756516490700,0.06,205.13,205.11,1.953936]
[1756516490887,0.06,205.13,205.11,40.093936]
[1756516493182,0.06,205.13,205.11,38.14]
[1756516493707,0.06,205.13,205.12,1.953936]
[1756516496203,0.06,205.13,205.12,2.633936]
[1756516496781,0.06,205.13,205.12,1.953936]
[1756516498405,0.06,205.13,205.12,40.073936]
[1756516499218,0.06,205.13,205.12,1.953936]
[1756516499428,0.75,205.13,205.12,1.953936]
[1756516499600,0.75,205.13,205.1,38.15]
[1756516499796,26.69,205.12,205.11,1.953936]
[1756516500002,0.69,205.12,205.1,0.03]
[1756516500303,4.87543269,205.11,205.1,0.03]
[1756516500908,5.52543269,205.11,205.1,0.03]
[1756516504122,31.52543269,205.11,205.1,0.03]
[1756516504326,5.52543269,205.11,205.1,0.03]
[1756516507128,7.48022869,205.11,205.1,0.03]
[1756516509311,45.60022869,205.11,205.1,0.03]
[1756516509718,45.60022869,205.11,205.08,0.03]
[1756516509719,26.0,205.09,205.08,0.03]
[1756516510210,26.0,205.08,205.07,0.03]
[1756516510415,39.59559401,205.08,205.07,0.03]
[1756516510614,40.24559401,205.08,205.07,0.03]
[1756516511033,42.20077201,205.08,205.07,0.03]
[1756516511529,47.0769179,205.08,205.07,0.03]
[1756516515214,85.1969179,205.08,205.07,0.03]
[1756516516432,13.59559401,205.07,205.05,0.03]
[1756516516807,0.65,205.06,205.05,0.03]
[1756516517210,2.605273,205.06,205.05,0.03]
[1756516517413,7.48189447,205.06,205.05,0.03]
[1756516520458,6.83189447,205.06,205.05,0.03]
[1756516520618,42.99662147,205.06,205.05,0.73]
[1756516522051,42.99662147,205.06,205.05,0.03]
[1756516523248,43.64662147,205.06,205.05,0.03]
[1756516523447,30.87662147,205.06,205.05,0.03]
[1756516523647,4.87639622,205.07,205.05,0.73]
[1756516523852,4.87639622,205.07,205.06,0.7]
[1756516524061,4.87639622,205.07,205.05,0.03]
[1756516524062,26.0,205.06,205.05,0.03]
[1756516524281,26.0,205.06,205.05,0.73]
[1756516525572,30.87662147,205.06,205.05,0.73]
[1756516526653,30.87662147,205.06,205.05,0.03]
[1756516526859,30.87662147,205.06,205.05,0.73]
[1756516527260,69.62662147,205.06,205.05,0.03]
[1756516527585,43.62662147,205.06,205.05,0.03]
[1756516530074,45.58189547,205.06,205.05,0.03]
[1756516535556,13.59559401,205.05,205.04,1e-08]
[1756516535750,39.59559401,205.03,205.02,0.1]
[1756516535968,77.69559401,205.03,205.02,0.1]
[1756516536275,85.21858503,205.03,205.02,0.1]
[1756516537575,85.21858503,205.03,205.0,0.03]
[1756516538070,83.26292903,205.03,205.0,0.03]
[1756516538379,1.955656,205.02,205.0,0.03]
[1756516538566,38.1,205.01,205.0,0.03]
[1756516538765,26.0,204.98,204.94,0.72]
[1756516538976,26.0,204.95,204.94,0.72]
[1756516539166,64.1,204.95,204.92,0.1]
[1756516539476,64.1,204.95,204.93,0.72]
[1756516539686,64.1,204.95,204.94,0.72]
[1756516540561,68.97923883,204.95,204.94,0.72]
[1756516541688,64.1,204.95,204.94,0.72]
[1756516541863,4.87923883,204.95,204.94,0.72]
[1756516542963,26.0,204.96,204.94,0.72]
[1756516543165,26.0,204.95,204.94,0.72]
[1756516544080,26.0,204.93,204.92,0.1]
[1756516544481,26.0,204.93,204.92,0.82]
[1756516544779,30.87971502,204.93,204.92,0.82]
[1756516545287,30.87971502,204.93,204.92,0.1]
[1756516545670,30.87971502,204.93,204.92,0.82]
[1756516546179,43.64971502,204.93,204.92,0.1]
[1756516546479,45.80537102,204.93,204.92,0.1]
[1756516556967,43.64971502,204.93,204.92,0.1]
[1756516558091,1.95642,204.95,204.92,0.82]
[1756516558268,3.92118499,205.04,204.92,5.69979658]
[1756516558473,17.75900755,205.05,204.93,0.72]
[1756516558702,13.59559401,205.03,204.93,0.72]
[1756516558990,38.08,205.02,204.93,0.72]
[1756516559195,38.08,205.01,204.93,0.72]
[1756516559398,38.08,205.0,204.93,0.72]
[1756516559573,38.08,205.02,204.93,0.72]
[1756516559775,64.08,205.02,204.93,0.72]
[1756516560289,64.08,205.02,204.94,4.87947692]
[1756516560493,38.08,205.02,204.95,0.72]
[1756516560680,38.08,205.04,204.95,0.72]
[1756516560986,38.08,205.06,204.95,0.72]
[1756516561191,38.08,205.06,204.96,12.199286]
[1756516561380,64.08,205.06,204.97,0.72]
[1756516561566,38.08,205.06,204.97,0.72]
[1756516561768,64.08,205.06,204.97,0.72]
[1756516562584,0.06,205.01,204.97,5.59856002]
[1756516562785,0.06,205.01,204.98,0.72]
[1756516563576,0.06,205.01,204.98,5.59850009]
[1756516564091,0.06,205.01,204.99,0.72]
[1756516564295,0.06,205.01,204.98,0.72]
[1756516564670,0.06,205.01,204.99,0.72]
[1756516565072,0.06,205.01,204.97,0.72]
[1756516565286,0.06,205.01,204.94,4.87933472]
[1756516565287,0.06,205.01,204.98,0.72]
[1756516565878,0.06,205.01,204.99,0.72]
[1756516566110,26.06,205.01,204.99,0.72]
[1756516567201,0.06,205.01,205.0,0.72]
[1756516568591,0.06,205.01,205.0,2.6747]
[1756516568974,0.06,205.01,205.0,21.14834279]
[1756516569797,0.06,205.01,205.0,7.55274878]
[1756516570576,1e-08,205.01,205.0,87.15274878]
[1756516572414,1e-08,205.01,205.0,87.64055365]
[1756516573907,1e-08,205.01,205.0,101.23614766]
[1756516574131,1e-08,205.01,205.0,100.74834279]
[1756516580414,1e-08,205.01,205.0,138.78834279]
[1756516584849,1e-08,205.01,205.0,100.74834279]
[1756516585019,1e-08,205.01,205.0,138.78834279]
[1756516592551,1e-08,205.01,205.0,164.78834279]
[1756516595950,1e-08,205.01,205.0,126.74834279]
[1756516596251,1e-08,205.01,205.0,164.04834279]
[1756516596753,1e-08,205.01,205.0,164.70834279]
[1756516599646,1e-08,205.01,205.0,164.73834279]
[1756516600841,1e-08,205.04,205.03,26.0]
[1756516601039,1e-08,205.04,205.03,144.1077335]
[1756516601242,1e-08,205.04,205.03,157.87559401]
[1756516601561,1e-08,205.07,205.06,39.59559401]
[1756516601736,1e-08,205.07,205.06,162.57987762]
[1756516602054,1e-08,205.07,205.06,162.75221548]
[1756516602254,1e-08,205.07,205.06,164.70596048]
[1756516603556,1e-08,205.07,205.06,164.04596048]
[1756516603943,0.68000001,205.07,205.06,126.02596048]
[1756516604157,0.68000001,205.07,205.06,1.953745]
[1756516604466,0.68000001,205.07,205.06,39.973745]
[1756516604856,0.68000001,205.07,205.06,38.02]
[1756516605543,0.68000001,205.07,205.01,4.87759372]
[1756516605741,0.68,205.06,205.02,38.0]
[1756516605939,0.68,205.05,205.02,38.0]
[1756516606159,0.68,205.04,205.02,38.0]
[1756516606359,0.68,205.03,205.02,38.0]
[1756516606560,0.68,205.03,205.02,42.87757291]
[1756516607144,0.68,205.03,205.0,0.03]
[1756516609465,5.55735702,205.03,205.0,0.03]
[1756516611944,26.0,205.01,205.0,0.03]
[1756516612373,26.68,205.01,205.0,0.03]
[1756516612876,0.68,205.01,205.0,0.03]
[1756516616663,5.55781083,205.01,205.0,0.03]
[1756516621698,13.59559401,205.0,204.98,0.03]
[1756516622165,40.26559401,204.99,204.98,0.03]
[1756516623909,45.14388075,204.99,204.98,0.03]
[1756516624116,69.56828674,204.99,204.98,0.03]
[1756516624781,5.54798013,205.01,204.98,0.03]
[1756516624990,0.67,205.01,204.98,0.03]
[1756516625501,26.0,204.99,204.98,0.03]
[1756516625911,26.0,205.0,204.98,0.03]
[1756516626078,0.67,204.99,204.98,0.03]
[1756516628811,5.54828674,204.99,204.98,0.03]
[1756516628980,43.56828674,204.99,204.98,0.03]
[1756516630079,5.54828674,204.99,204.98,0.03]
[1756516630285,38.02,204.99,204.98,0.03]
[1756516630695,38.69,204.99,204.98,0.03]
[1756516632604,43.56828674,204.99,204.98,0.03]
[1756516633107,0.67,205.02,204.98,0.03]
[1756516633300,1e-08,205.07,204.98,0.73]
[1756516633806,26.0,205.06,204.98,0.73]
[1756516634614,0.06,205.0,204.98,0.73]
[1756516635401,0.06,205.0,204.99,4.87828674]
[1756516636206,0.06,205.0,204.99,5.57828674]
[1756516643620,0.06,205.0,204.99,98.77388075]
[1756516645993,0.06,205.0,204.99,136.77388075]
[1756516650634,0.06,205.03,205.0,13.59559401]
[1756516650821,0.06,205.05,205.04,13.59559401]
[1756516651027,0.06,205.05,205.04,52.08330372]
[1756516651212,0.06,205.05,205.04,52.75330372]
[1756516651533,1e-08,205.05,205.04,132.35330372]
[1756516651715,1e-08,205.05,205.04,131.86559401]
[1756516652841,1e-08,205.05,205.04,136.74269116]
[1756516657832,1e-08,205.05,205.04,98.74269116]
[1756516658039,1e-08,205.05,205.04,136.05269116]
[1756516658227,0.66000001,205.05,205.04,136.05269116]
[1756516658423,0.66000001,205.05,205.04,4.87709715]
[1756516658651,0.66000001,205.05,205.04,42.85709715]
[1756516659109,0.66000001,205.05,205.04,37.98]
[1756516659538,1e-08,205.05,205.04,42.85709715]
[1756516660938,0.66000001,205.05,205.0,4.8779376]
[1756516661112,1e-08,205.05,205.01,37.98]
[1756516661429,1e-08,205.05,205.02,4.87757291]
[1756516661634,1e-08,205.05,205.03,37.98]
[1756516661834,0.66000001,205.05,205.03,37.98]
[1756516662719,0.66000001,205.05,205.03,42.85709782]
[1756516664923,1e-08,205.05,205.03,43.52709782]
[1756516665726,1e-08,205.05,205.04,0.67]
[1756516666115,1e-08,205.05,205.03,122.45709782]
[1756516666618,1e-08,205.05,205.04,0.67]
[1756516667043,1e-08,205.05,205.04,5.54709715]
[1756516669222,1e-08,205.05,205.04,85.14709715]
[1756516669431,1e-08,205.05,205.04,123.12709715]
[1756516670738,1e-08,205.05,205.04,122.45709715]
[1756516671743,1e-08,205.05,205.04,122.48709715]
[1756516675239,1e-08,205.05,205.04,79.63]
[1756516675458,0.66000001,205.05,205.04,117.61]
[1756516675839,1e-08,205.05,205.04,117.61]
[1756516676226,0.66000001,205.05,205.04,122.48709715]
[1756516681238,1e-08,205.05,205.04,122.48709715]
[1756516681751,0.67000001,205.05,205.04,122.48709715]
[1756516681953,1e-08,205.05,205.04,136.74269116]
[1756516682158,1e-08,205.05,205.04,138.69681816]
[1756516683039,1e-08,205.05,205.04,164.69681816]
[1756516683353,1e-08,205.07,205.06,39.59559401]
[1756516683529,0.06,205.08,205.06,39.59559401]
[1756516683530,0.06,205.08,205.07,13.59559401]
[1756516683864,0.06,205.08,205.07,14.25559401]
[1756516686040,0.06,205.08,205.07,19.13197768]
[1756516686533,1e-08,205.1,205.09,39.59559401]
[1756516686834,1e-08,205.1,205.09,157.64318482]
[1756516687030,0.06,205.16,205.12,39.59559401]
[1756516687238,0.06,205.16,205.13,13.59559401]
[1756516687437,0.06,205.16,205.14,38.44747197]
[1756516687642,0.06,205.16,205.14,39.10747197]
[1756516688032,0.06,205.16,205.14,41.06054897]
[1756516688633,0.06,205.16,205.14,45.27526867]
[1756516688941,0.06,205.16,205.14,86.91526867]
[1756516689128,0.06,205.16,205.14,124.87526867]
[1756516689333,0.06,205.16,205.14,124.3877967]
[1756516689655,0.73,205.15,205.14,79.6]
[1756516689856,0.73,205.15,205.14,117.56]
[1756516690434,0.73,205.15,205.14,122.4347197]
[1756516690633,0.06,205.15,205.14,122.4347197]
[1756516691561,0.73,205.15,205.14,122.4347197]
[1756516692767,0.73,205.15,205.14,42.8347197]
[1756516693861,0.06,205.15,205.14,56.43031371]
[1756516694060,0.06,205.15,205.14,57.09031371]
[1756516694271,0.06,205.15,205.14,59.04358171]
[1756516695142,0.73,205.15,205.14,79.6]
[1756516695343,0.73,205.15,205.14,117.54]
[1756516697346,0.73,205.15,205.14,122.4147197]
[1756516697672,0.73,205.15,205.14,117.54]
[1756516698854,0.73,205.15,205.12,1.953364]
[1756516699176,0.67,205.14,205.13,37.94]
[1756516699858,0.06,205.15,205.13,38.6]
[1756516700071,0.06,205.15,205.14,13.59559401]
[1756516700369,0.06,205.15,205.14,14.74306598]
[1756516700567,0.06,205.15,205.14,16.03614398]
[1756516700773,0.06,205.15,205.14,16.69614398]
[1756516701072,1e-08,205.15,205.14,21.57086368]
[1756516703966,1e-08,205.15,205.14,20.91086368]
[1756516704670,1e-08,205.15,205.14,58.85086368]
[1756516707452,0.67000001,205.15,205.14,58.85086368]
[1756516707652,0.67000001,205.15,205.14,58.36339171]
[1756516710566,0.67000001,205.15,205.14,137.96339171]
[1756516711569,0.67000001,205.15,205.14,100.02339171]
[1756516711751,1e-08,205.15,205.14,137.96339171]
[1756516719268,1e-08,205.15,205.14,138.68339171]
[1756516720877,1e-08,205.15,205.14,138.66339171]
[1756516721176,1e-08,205.16,205.14,138.66339171]
[1756516721349,1e-08,205.16,205.15,14.80304221]
[1756516722281,1e-08,205.16,205.15,19.67752429]
[1756516723080,1e-08,205.16,205.15,21.63031629]
[1756516725458,1e-08,205.16,205.15,101.23031629]
[1756516725661,1e-08,205.16,205.15,100.74286809]
[1756516726182,1e-08,205.16,205.15,137.94286809]
[1756516727480,1e-08,205.16,205.15,138.66286809]
[1756516727783,1e-08,205.16,205.15,137.94286809]
[1756516728770,1e-08,205.16,205.15,138.66286809]
[1756516736785,1e-08,205.16,205.15,137.94286809]
[1756516737673,1e-08,205.16,205.15,138.66286809]
[1756516741273,1e-08,205.16,205.15,138.64286809]
[1756516741601,0.68000001,205.16,205.15,100.02286809]
[1756516741785,0.68000001,205.16,205.15,137.92286809]
[1756516743271,0.68000001,205.16,205.15,137.95286809]
[1756516743495,1e-08,205.16,205.15,138.67286809]
[1756516743692,1e-08,205.16,205.15,137.95286809]
[1756516744797,1e-08,205.16,205.15,138.67286809]
[1756516745187,1e-08,205.16,205.15,137.95286809]